{"text_format":"1","workbook":"xlsx","n_sheets":18,"sheets":["ACCUEIL","FORMULES","TABLEAUX","GRAPHIQUES","DONNEES DE VALIDATION","IMAGES","MISE EN FORME CONDITIONNELLE","CRÉER APPLI POUR TAB","MACROS","LIEN HYPERTEXTE","COMMENTAIRES","CHOIX PHOTO INTERNE","REVISION-SECURITE","INCREMENTER et $","FIGER","RACCOURCIS CLAVIER","CSV en TABLEAU","MODELE"],"not_rendered":{"charts":5,"images":79,"macros":1,"external_links":0,"defined_names":5,"comments":1,"pivot_tables":0},"unopened":[],"bounds":{"document_bytes":16777216,"sheet_cells":100000,"rows_first":2000,"rows_last":500,"rows_between":2000,"halvings":0,"cell_chars":16384,"cell_head_chars":4096},"cells_cut":0,"cells_raw":0,"read":"whole","date_system":"1900"}

{"sheet":"ACCUEIL","index":0,"n_rows":0,"n_cols":0,"rows_kept":0,"cut":false,"hidden":false,"merged":[]}

{"sheet":"FORMULES","index":1,"n_rows":247,"n_cols":17,"rows_kept":247,"cut":false,"hidden":false,"merged":[[219,0,220,5],[127,0,127,5],[1,1,1,5],[1,8,1,13],[1,16,1,20],[4,8,4,10],[4,12,4,13]]}
[]
["FORMULES","COMPRENDRE",null,null,null,null,null,null,"EXEMPLES CONCRETS EN EPS",null,null,null,null,null,null,null,"S'ENTRAINER"]
[]
[null,null,null,null,null,null,null,null,"Tableaux servant de bases de travail pour toutes les formules ci-dessous",null,null,null,null,null,null,null,"Construiser ici 2 tableaux : un servant de relevé de donnée et un tableau barème"]
[null,null,null,null,null,null,null,null,"Mike",null,null,null,"Barème Paniers"]
[null,null,null,null,null,null,null,null,"Critères","Pts/\ncritères","Relevé",null,0,0]
[null,null,null,null,null,null,null,null,"Fautes",-1,3,null,2,1.25]
[null,null,null,null,null,null,null,null,"Tirs tentés",1,2,null,4,2.5]
[null,null,null,null,null,null,null,null,"Paniers",2,1,null,100,3]
[]
[null,"MATHS ET TRIGONOMETRIE"]
[null,"Addition + , soustraction - , multiplication *, division /",null,null,null,null,null,null,"Le score de Mike est égal à l'addition de chaque donnée relevée "]
["Syntaxe :",null,null,null,null,null,null,null,"multiplié par la valeur attribuée à chaque critère"]
["formule = =J6*L6+J7*L7+J8*L8",null,null,null,null,null,null,null,null,null,null,{"$f":"J7*K7+J8*K8+J9*K9","v":1}]
["Compréhension = on multiplie J6 par L6, J7 par L7, J8 par L8 et on ajoute les 3 sommes"]
[]
[null,"SOMME"]
["Syntaxe",null,null,null,null,null,null,null,"NOMBRE DE TIRS ->",null,null,{"$f":"SUM(K6:K10)","v":6}]
["formule = SOMME(J6:J8)",null,null,null,null,null,null,null,null,null,null,"formule = SOMME(J6:J8)"]
["Compréhension = faire la somme des cellules allant de J6 à J8"]
[]
[null,"SOMME et SIERREUR"]
["Syntaxe",null,null,null,null,null,null,null,"SCORE DE MATHIEU ->",null,null,{"$f":"IFERROR(K6*M6+K7*M7+K10*M10,0)","v":0},"points"]
["formule =SIERREUR(J6*L6+J7*L7+J8*L8;0)",null,null,null,null,null,null,null,null,null,null,"formule =SIERREUR(J6*L6+J7*L7+J8*L8;0)"]
["Compréhension = si il y a une erreur en faisant le score de mathieu alors écrire 0"]
[]
[null,"SOMME.SI",null,null,null,null,null,null,null,null,null,3]
["Syntaxe ",null,null,null,null,null,null,null,null,null,null,"erreur"]
["formule =SOMME.SI(K25:K27;\"<>#N/A\")",null,null,null,null,null,null,null,null,null,null,7]
["Compréhension = ",null,null,null,null,null,null,null,null,null,null,{"$f":"SUMIF(L27:L29,\"<>#N/A\")","v":10}]
[]
[null,"ARRONDI"]
["Syntaxe ",null,null,null,null,null,null,null,"ARRONDI LE SCORE DE MATHIEU",null,null,{"$f":" ROUND(L23,1)","v":0}]
["formule = ARRONDI(K17;1)",null,null,null,null,null,null,null,null,null,null,"formule = ARRONDI(K17;1)"]
["Arrondi le chiffre contenu dans la cellule K17 à 1 chiffre après la virgule"]
[]
[null,"ARRONDI.INF - ARRONDI.SUP"]
["Syntaxe",null,null,null,null,null,null,null,"ARRONDI au chiffre INF",null,null,{"$f":" ROUNDDOWN(L23,1)","v":0}]
["formule = ARRONDI.INF(K17;1)"]
["ARRONDI au chiffre INFérieur ou SUPérieur",null,null,null,null,null,null,null,null,null,null,"formule = ARRONDI.INF(K17;1)"]
[]
[]
[null,"BASE DE DONNEES"]
[]
[null,"DATE ET HEURE"]
[]
[null,"INFORMATIONS"]
[null,"CELLULE"]
["Syntaxe"]
["formule=CELLULE(\"largeur\";K47)",null,null,null,null,null,null,null,null,null,null,{"$f":"CELL(\"largeur\",L50)","v":10}]
["= Renvoit des informations (\"la largeur\") sur la cellule (K47). ",null,null,null,null,null,null,null,null,null,null,"=CELLULE(\"largeur\";K47)"]
["D'autres infos peuvent être renvoyées : aidez vous du concepteur de FORMULES"]
[]
[null,"ESTNUM"]
["Syntaxe",null,null,null,null,null,null,null,"Changer cette valeur par un texte"]
["formule=ESTNUM(K54)",null,null,null,null,null,null,null,17,null,null,{"$f":"ISNUMBER(I56)","v":true}]
["= Indique si la valeur de la cellule I54 est un nombre",null,null,null,null,null,null,null,null,null,null,"=ESTNUM(i54)"]
[]
[]
[null,"ESTTEXT"]
["Syntaxe",null,null,null,null,null,null,null,"Changer cette valeur par un chiffre"]
["formule=ESTTEXTE(I60)",null,null,null,null,null,null,null,"AB",null,null,{"$f":"ISTEXT(I62)","v":true}]
["= Indique si la valeur de la cellule I60 est un texte",null,null,null,null,null,null,null,null,null,null,"=ESTTEXTE(i60)"]
[]
[]
[]
[]
[]
[]
[null,"LOGIQUE"]
[null,"SI"]
["Syntaxe",null,null,null,null,null,null,null,"Valeurs modifiables"]
["formule=SI(I71<=I72;M71;M72)",null,null,null,null,null,null,null,17,null,null,{"$f":"IF(I73<=I74,N73,N74)","v":"Inférieur"},null,"Inférieur"]
["SI la valeur de I71 est inférieure ou égale à I72, inscrire la valeur contenue en M71 sinon inscrire la valeur contenue en M72",null,null,null,null,null,null,null,18,null,null,"=SI(I71<=I72;M71;M72)",null,"Supérieur"]
[]
[]
["formule=SI(K71=\"Inférieur\";\"t'es au top\";SI(K71=\"Supérieur\";\"Tu feras mieux\";ABSENT))"]
["Si la valeur de K71=\"Inférieur\" alors écrire \"t'es au top\", Si K71=\"supérieur\" alors écrire \"Tu feras mieux\", SINON écrire \"ABSENT\"",null,null,null,null,null,null,null,null,null,null,{"$f":"IF(L73=\"Inférieur\",\"t'es au top\",IF(L73=\"Supérieur\",\"Tu feras mieux\",ABSENT))","v":"t'es au top"}]
[null,null,null,null,null,null,null,null,null,null,null,"=SI(K71=\"Inférieur\";\"t'es au top\";SI(K71=\"Supérieur\";\"Tu feras mieux\";ABSENT))"]
[]
[null,"OU",null,null,null,null,null,null,"Valauers modifiables"]
["Syntaxe",null,null,null,null,null,null,null,17]
["formule=OU(i80=i71;i81=i72)",null,null,null,null,null,null,null,18,null,null,{"$f":"OR(I82=I73,I83=I74)","v":true}]
["Indique VRAI si i80=i71 OU i81=i72",null,null,null,null,null,null,null,null,null,null,"=OU(i80=i71;i80=i72)"]
[]
[null,"ET"]
["Syntaxe"]
["formule=ET(i80=i71;i81=i72)"]
["indique VRAI SI I80 = i71 ET i81 = i72 alors indiquer sinon indique FAUX",null,null,null,null,null,null,null,null,null,null,{"$f":"AND(I82=I73,I83=I74)","v":true}]
[]
[]
[null,"SIERREUR"]
["Syntaxe",null,null,null,null,null,null,null,{"$f":"I82*L83/L78","v":{"$error":"#VALUE!"}}]
["formule=SIERREUR(I91;\"Errora\")",null,null,null,null,null,null,null,null,null,null,{"$f":"IFERROR(I93,\"Errora\")","v":"Errora"}]
["SI il y a une erreur en I91 écrire \"Errora\"",null,null,null,null,null,null,null,null,null,null,"=SIERREUR(I91;\"Errora\")"]
[]
[null,"MATHS ET TRIGO"]
[]
["=(SOMMEPROD(N(ESTTEXTE(I97:L97))))",null,null,null,null,null,null,null,"Ludo",null,"Paul ",3,"Pierre"]
["Compte le nombre de fois qu'un texte apparaît au sein des cellules I97:L97"]
[null,null,null,null,null,null,null,null,null,null,null,{"$f":"(SUMPRODUCT(N(ISTEXT(I99:M99))))","v":3}]
["=ARRONDI(MOYENNE(I102:L102);2)",null,null,null,null,null,null,null,null,null,null,"=(SOMMEPROD(N(ESTTEXTE(I97:L97))))"]
["Arrondi la moyenne des valeurs contenues entre i102 et L102 à 2 chiffres après la virgule"]
[null,null,null,null,null,null,null,null,4,null,7.234,7.7889999999999997,3.35]
[]
[null,null,null,null,null,null,null,null,null,null,null,{"$f":"ROUND(AVERAGE(I104:M104),2)","v":5.59}]
[null,null,null,null,null,null,null,null,null,null,null,"=ARRONDI(MOYENNE(I102:L102);2)"]
[null,"RECHERCHE et MATRICE"]
[]
["=EQUIV(B3;A3:E3;0)"]
["Recherche la colonne d'une valeur (B3) dans une plage de données (A3:E3))"]
[]
[]
[]
["=INDEX(A3:D7;A3;B3)"]
["Renvoi la valeur d'intersection de la ligne 1 (Valeur de A3) et de la colonne 2 (valeur de B3) dans le tableau A3:D7"]
[]
[]
[]
[]
["=LIEN_HYPERTEXTE(\"#EXCEL!E\"&EQUIV(I4;{\"ok\";\"obj\";\"SA1\";\"SA2\";\"SA3\"};0);\"lien\")"]
["EN fonction de la valeur de I4 (ok, obj, SA1, SA2, SA3), crée un lien hypertexte pour se rendre dans la feuille nommée \"EXCEL\" (celle-ci), dans la colonne E et dans la cellule correspondant au classement de la valeur contenue en I4 (ici c'est la 5ème valeur de la colonne). Si la valeur correspond à l'une des valeurs possibles le mot \"lien\" apparait."]
[]
[]
[]
[]
["=RECHERCHEV(L126;I126:J128;2;FAUX)",null,null,null,null,null,null,null,"Elèves",null,"Note"]
["En fonction de la valeur de L126, effectue une recherche horizontale dans le tableau I126:J128, dans la 2ème colonne de ce tableau, et renvoie une valeur exacte (FAUX)",null,null,null,null,null,null,null,"Pierre",null,12,null,"Paul","Changez le prénom dans cette case"]
[null,null,null,null,null,null,null,null,"Paul",null,15,null,"Note"]
[null,null,null,null,null,null,null,null,"Jack",null,17,null,{"$f":"VLOOKUP(M128,I128:K130,2,FALSE)","v":0}]
[null,null,null,null,null,null,null,null,null,null,null,null,"=RECHERCHEV(L126;I126:J128;2;FAUX)"]
[]
["=RECHERCHEH(E3;E3:I7;2;FAUX)"]
["En fonction de la valeur de E3, effectue une recherche verticale dans le tableau E3:I7, dans la 2ème colonne de ce tableau"]
[]
[]
[]
[]
["=CHOISIR(B3;\"Tu es le premier\";\"Tu es le deuxième\";\"Tu es le troisième\")"]
["En fonction du chiffre contenue en B3 (2) \"n\"(de 1 à 29), la cellule renvoit le \"nième\" texte (le 2ème ici)"]
[]
[]
[]
[]
["Permet de trouver la valeur la plus proche"]
["=INDEX(REFERENTIELS!$E$37:$M$37;EQUIV(MIN(ABS(EH4-REFERENTIELS!$E$37:$M$37));ABS(EH4-REFERENTIELS!$E$37:$M$37);0))"]
["A valdier avec Ctrl+Maj+ Entrée car formule m=atricielle"]
[]
[]
[]
[]
[null,"STATISTIQUES"]
[]
["=MOYENNE(A3:D7)"]
["Fais la moyenne des valeurs contenues entre A3:D7"]
[]
[]
[]
["=NB.SI(E3:I7;\"BRAVO\")"]
["Nombre de fois qu'apparaît le mot \"BRAVO\" dans la plage de données E3:I7"]
[]
[]
[]
[]
["=MAX(A3:D7)"]
["Trouve la plus grande valeur dans une plage de données (ou entre différentes cellules distinctes)"]
[]
[]
[]
[]
["=GRANDE.VALEUR(A3:D7;3)",null,null,"idem avec PETITE.VALEUR"]
["Trouve la 3ème plus grande valeur"]
[]
[]
[]
[]
[null,"TEXTE"]
[]
["=CHERCHE(E5;G5)"]
["Chercle la position de \"BRAVO\" (E3) dans la cellule I5 (\"BRAVO BEN\")"]
[]
[]
[]
[]
["=CONCATENER(E3;\"-\";E7)"]
["Assembler les valeurs des cellules E3 (BRAVO), \"-\" et E7 (TB)"]
[]
[]
[]
[]
["=REMPLACER(E3;2;2;\"hmmm\")"]
["Remplacer 2 lettres (correspond au 1er 2) à partir de la 2ème lettre (correspond au 2ème 2)  le mot contenu en E3 (BRAVO) par le mot \"hmmm\""]
[]
[]
[]
[]
[null,"COMPTABILITE"]
["=MODE(A3:D7)"]
["Nombre appariassant le + de fois dans le tableau A3:D7"]
[]
[]
[]
[]
["=RANG(A6;A3:B7;1)",null,"A REVOIR"]
["Donne le rang de la valeur contenue en A6 au sein de le tableau A3:B7"]
[]
[]
[]
["\"INDEX",null,null,null,null,null,null,null,null,null,"Paul "]
[]
[null,null,null,null,null,null,null,null,null,null,"Paul"]
[null,null,null,null,null,null,null,null,null,null,"Franck"]
[]
[]
[]
[]
["INDEX et EQUIV",null,null,null,null,null,null,null,"Coup de bras",null,"Temps","Note"]
["formule =INDEX(note;EQUIV(i171;Coupbras;0);EQUIV(J171;temsp;0))",null,null,null,null,null,null,null,12,null,10,{"$f":"INDEX(K221:M223,MATCH(I218,I221:I223,0),MATCH(K218,K220:M220,0))","v":7}]
[null,null,null,null,null,null,null,null,null,null,null,"=INDEX(note;EQUIV(i171;Coupbras;0);EQUIV(J171;temsp;0))"]
["Nommer la ligne TEMPS, nommer la colonne COUPBRAS et nommer le tableau où figure les notes NOTE",null,null,null,null,null,null,null,"CB-Temps",null,10,20,30]
[null,null,null,null,null,null,null,null,10,null,10,5,2]
[null,null,null,null,null,null,null,null,12,null,7,2.5,2]
[null,null,null,null,null,null,null,null,14,null,5,2,0]
[]
[]
[]
["ENT et MOD",null,null,null,null,null,null,null,null,null,"Entrer ici votre chiffre avc virgule"]
["formule =(ENT(J226)*60+MOD(J226;1)*100)*\"00:00:01\"",null,null,null,null,null,null,null,null,null,3.2,{"$f":"(INT(K228)*60+MOD(K228,1)*100)*\"00:00:01\"","v":"00:03:20"}]
["ENT permet de récupérer un nombre entier et MOD les chiffres près la virgule",null,null,null,null,null,null,null,null,null,null,"=(ENT(J226)*60+MOD(J226;1)*100)*\"00:00:01\""]
[null,null,null,null,null,null,null,null,null,null,null,"Bien mettre K226 au format personnalisé mm:ss dans format de cellule"]
[]
["ABSOLU et transformer format heure en décimal"]
["formule=ABS((HEURE(J231)*3600+MINUTE(J231)*60+SECONDE(J231)))",null,null,null,null,null,null,null,null,null,2.0006944444444446,{"$f":"ABS((HOUR(K233)*3600+MINUTE(K233)*60+SECOND(K233)))","v":60}]
[null,null,null,null,null,null,null,null,null,null,null,"=ABS((HEURE(J231)*3600+MINUTE(J231)*60+SECONDE(J231)))"]
[]
["Mettre au format heure"]
["TEXTE(A2;\"jj/mm\")"]
[]
["Rechercher un mot avec une fin variable"]
["RECHERCHEH(\"N\"&\"*\";'F12:O48;2;FAUX)"]
[]
["Separer nom et prénom d'une même colonne"]
["=GAUCHE(A1; CHERCHE(\" \";A1)-1)"]
["=DROITE(A1;NBCAR(A1) - CHERCHE(\" \";A1))"]
[]
["Convertir secondes au format "]
["si 3600 est en A1 on peut taper en B1 par exemple : =A1*\"00:00:01\""]

{"sheet":"TABLEAUX","index":2,"n_rows":56,"n_cols":16,"rows_kept":56,"cut":false,"hidden":false,"merged":[[42,11,45,12],[20,1,20,5],[1,1,1,5],[1,8,1,12],[1,15,1,19],[4,8,4,9],[4,11,4,12],[20,8,20,9],[25,11,27,12]]}
[]
["TABLEAUX","COMPRENDRE",null,null,null,null,null,null,"EXEMPLES CONCRETS EN EPS",null,null,null,null,null,null,"S'ENTRAINER"]
[]
[]
[]
[]
["1- Sélectionner les cellules qui vont définir le tableau (vierges ou déjà remplies)"]
[null,null,null,null,null,null,null,null,"3- Rentrer vos valeurs"]
[null,null,null,null,"2-Cliquer sur nouveau"]
[null,null,null,null,null,null,null,null,"CRITERES","NOMBRE"]
[null,null,null,null,null,null,null,null,"Paniers",2]
[null,null,null,null,null,null,null,null,"Tirs seuls",1]
[null,null,null,null,null,null,null,null,"Tirs ratés",0]
[]
[]
[]
[]
[]
[]
[]
[null,"4- Vous pouvez ensuite appliquer des filtres, trier les valeurs \nou encore en  sélectionner certaines",null,null,null,null,null,null,"Tableau avec tri"]
[null,null,null,null,null,null,null,null,"CRITERES","NOMBRE"]
[null,null,null,null,null,null,null,null,"Tirs ratés",0]
[null,null,null,null,null,null,null,null,"Tirs seuls",1]
[null,null,null,null,null,null,null,null,"Paniers",2]
[null,null,null,null,null,null,null,null,null,null,null,"Tableau avec filtre"]
[]
[]
[null,null,null,null,null,null,null,null,null,null,null,"CRITERES","NOMBRE"]
[null,null,null,null,null,null,null,null,null,null,null,"Paniers",2]
[null,null,null,null,null,null,null,null,null,null,null,"Tirs seuls",1]
[null,null,null,null,null,null,null,null,null,null,null,"Tirs ratés",0]
[]
[]
[]
[]
[]
[]
[]
[]
[]
[null,"5-Jouer ensuite sur les couleurs de fond, police, les bordures,..",null,null,null,null,null,null,"CRITERES","NOMBRE"]
["soit en utilisant les modèles existants",null,null,null,null,null,null,null,"Paniers",2,null,"Attention ici j'ai appliqué un fond blanc à la page donc il faudra mettre aucun remplissage pour que votre tableau apparaisse en couleur"]
[null,null,null,null,null,null,null,null,"Tirs seuls",1]
[null,null,null,null,null,null,null,null,"Tirs ratés",0]
[]
[]
[]
[]
[]
[]
["soit selon vos propres envies en utilisant les mises en forme de fond, police, bordures,…"]
[null,null,null,null,null,null,null,null,"CRITERES","NOMBRE"]
[null,null,null,null,null,null,null,null,"Paniers",2]
[null,null,null,null,null,null,null,null,"Tirs seuls",1]
[null,null,null,null,null,null,null,null,"Tirs ratés",0]

{"sheet":"GRAPHIQUES","index":3,"n_rows":91,"n_cols":16,"rows_kept":91,"cut":false,"hidden":false,"merged":[[1,15,1,19],[4,8,4,9],[4,11,4,12],[6,0,6,5],[85,8,88,12],[26,0,26,5],[71,0,71,5],[88,0,88,5],[1,1,1,5],[1,8,1,12]]}
[]
["GRAPHIQUES","COMPRENDRE",null,null,null,null,null,null,"EXEMPLES CONCRETS EN EPS",null,null,null,null,null,null,"S'ENTRAINER"]
[]
[]
[]
[]
["1-Vous pouvez créer des graphiques simples en selectionnant un tableau et en cliquant sur le type de graphique désiré"]
[]
[]
[null,null,null,null,null,null,null,null,"CRITERES","NOMBRE"]
[null,null,null,null,null,null,null,null,"Zone arrière",2]
[null,null,null,null,null,null,null,null,"Zone centrale",3]
[null,null,null,null,null,null,null,null,"Zone avant",6]
[]
[]
[]
[]
[]
[]
[]
[]
[]
[]
[]
[]
[]
["2- Vous pouvez aussi des graphiques plus complexes en définissant l'ensemble des éléments : choisissez le modèle BULLE "]
[]
[]
[]
[]
[]
[null,null,null,null,null,"POUR OBTENIR ->"]
[]
[]
[]
[]
[]
[]
[]
[]
["2- Choissisez les éléments que vous souhaitez conserver : ici seul le titre à été ajouté, sinon AUCUN a été spécifié pour les Titres des Axes, Légende, Axes et Grilles"]
[]
[]
[]
[]
[]
[]
[]
[]
[]
[]
[]
[]
[]
[]
[]
[]
["3-Clic droit sur le graphique : Format de la zone de graphique puis Remplissage à Gauche pour ajouter une image en fond "]
[]
[]
[]
[]
[]
[]
[]
[]
[]
[]
[]
[]
["4- L'étape la plus importante : séléctionner les séries à Gauche, en Ajouter si besoin et rentrer les données : NOM = nom de l'étiquette (CRITERES ou NOMBRE), Valeur X: position sur l'abscisse, Valeur Y : position sur l'ordonée et Tailles : indiquer la valeur correspondante dans le tableau  (ici Zone arrière =2) et a comme coordonnées (1;2)"]
[]
[]
[]
[]
[]
[]
[]
[]
[]
[]
[]
[]
[]
[null,null,null,null,null,null,null,null,"Voici un exemple  : vous pouvez jouer sur les valeurs du tableau en haut pour voir l'évolution des bulles"]
[]
[]
["Cliquer sur les petites cases à droite pour aller chercher directement la cellule correspondante : pour que la taille de la bulle soit relative à la valeur indiquez la cellule où se trouve la valeur"]
[]
["Sélectionner des étiquettes de données et jouer sur les paramètres pour obtenir l'effet voulu"]

{"sheet":"DONNEES DE VALIDATION","index":4,"n_rows":115,"n_cols":16,"rows_kept":115,"cut":false,"hidden":false,"merged":[[1,1,1,5],[1,8,1,12],[1,15,1,19],[4,11,4,12]]}
[]
["DONNEES DE VALIDATION","COMPRENDRE",null,null,null,null,null,null,"EXEMPLES CONCRETS EN EPS",null,null,null,null,null,null,"S'ENTRAINER"]
[]
[]
[null,"1- CRÉER UNE LISTE DE DONNEES",null,null,null,null,null,null,null,"MUSCLES","Exercices"]
[null,null,null,null,null,null,null,null,null,"PECTORAUX","Développé couché"]
[null,null,null,null,null,null,null,null,null,"BICEPS","Curl Haltères"]
[null,null,null,null,null,null,null,null,null,"FESSIERS","Abduction avec élastique"]
[]
[]
[]
[]
[null,"2- Créer une données de validation"]
["Données - Validation des données ",null,null,null,null,null,null,null,null,"Choisissez dans la liste ci-dessous"]
[null,null,null,null,null,null,null,null,null,"PECTORAUX"]
[]
[]
[]
[]
["Choisissez un critère de validation : ici LISTE"]
[]
[]
[]
[]
[]
[]
[]
[]
[]
[]
[]
[]
[]
["Récupérer la source correspondant à votre liste"]
[]
[]
[]
[]
[]
[]
[]
[]
[]
[]
["Vous pouvez mettre un message de saisie quand la cellule est sélectionner ou pas"]
[]
[]
[]
[null,null,null,null,null,null,null,null,null,"PECTORAUX"]
[]
[]
[]
[]
[]
[]
["et indiquez une erreur sous forme d'arrêt, d'inforamtion ou d'avertissement si une donnée entrée n'est pas valide"]
[]
[null,null,null,null,null,null,null,null,null,"Ecrivez autre chose q'un nom de muscle"]
[null,null,null,null,null,null,null,null,null,"essai"]
[]
[]
[]
[]
[]
[]
[]
[]
[]
[]
[]
[]
[]
[]
[]
[]
[]
[]
[]
["PLUSIEURS COLONNES DANS UNE MEME DONNEE DE VALIDATION"]
[]
["1-Sélectionner une plage de cellule et dans la zone de texte choisir un Nom : nommer la plage List "]
[]
[null,null,null,"2- Créer une liste de validation en K86, dans source saisir le nom défini (ici = List)"]
[]
[]
[]
[]
[]
[]
[]
[]
[]
[]
["Puis cliquer sur Insertion - Nom - Définir et récupérer le nom de votre liste"]
[]
[]
[]
[]
[]
[]
[]
[]
[]
[]
[]
[]
[]
[]
[]
[]
["Puis modifier sa référence en sélectionnant une plage de cellule plus grande"]
[]
[]
[null,null,null,null,null,null,null,null,null,null,"Nommer le tableau avec les muscles sous le nom List"]
[null,null,null,null,null,null,null,null,null,null,"Développé couché"]

{"sheet":"IMAGES","index":5,"n_rows":50,"n_cols":16,"rows_kept":50,"cut":false,"hidden":false,"merged":[[36,0,36,5],[43,10,46,10],[1,1,1,5],[1,8,1,12],[1,15,1,19],[4,8,4,9],[4,11,4,12]]}
[]
["IMAGES","COMPRENDRE",null,null,null,null,null,null,"EXEMPLES CONCRETS EN EPS",null,null,null,null,null,null,"S'ENTRAINER"]
[]
[]
[null,"RENDRE LE FOND BLANC TRANSPARENT"]
[]
["Sélectionner l'image - Cliquer sur RECOLORIER ",null,null,null,null,null,null,null,null,"AVANT"]
["Puis Couleur transparente"]
["Enfin cliquer sur le fond de l'image avec l'outil flèche qui apparaît"]
[]
[]
[]
[null,null,null,null,null,null,null,null,null,"APRES"]
[]
[]
[]
[]
[]
[]
[]
[]
[]
[]
[]
[]
[]
[]
[]
[]
[]
[]
[]
["JOUER AVEC LES MISES EN FORME EN UTILISANT LES EFFETS DISPONIBLES"]
["Changement de couleur, opacité, effet 3D, Cadres, ombres, …"]
[]
[]
["ALIGNER LES FORMES C'EST PLUS JOLI"]
[]
["Insérer des formes puis cliquer sur réorganiser"]
[]
[]
[]
[]
[]
[]
[]
[]
[]
[]
[null,null,null,"Aligner et repartir selon vos envies"]

{"sheet":"MISE EN FORME CONDITIONNELLE","index":6,"n_rows":84,"n_cols":16,"rows_kept":84,"cut":false,"hidden":false,"merged":[[1,15,1,19],[0,0,2,0],[52,0,53,6],[56,9,56,10],[74,9,74,10],[4,8,9,12],[1,1,1,5],[1,8,1,12]]}
["MISE EN FORME CONDTIONNELLE"]
[null,"COMPRENDRE",null,null,null,null,null,null,"EXEMPLES CONCRETS EN EPS",null,null,null,null,null,null,"S'ENTRAINER"]
[]
[]
["1- Cliquez sur l'onglet ACCUEIL",null,null,null,null,null,null,null,"L'objectif principal est de mettre en valeur des données : En jouant avec le type de règle de mise en forme, les couleurs et les formules vous pourrez mettre en évidence tout ce que vous souhaitez"]
[]
[]
[]
[]
[]
[null,null,null,null,null,null,null,null,"1- Mettre en évidence la meilleure note"]
[null,null,null,null,null,null,null,null,"Elèves","Notes "]
["2- Choisir Mise en forme condtionnelle",null,null,null,null,null,null,null,"Kény",15]
[null,null,null,null,null,null,null,null,"Sylvie",15]
[null,null,null,null,null,null,null,null,"Adama",14]
[null,null,null,null,null,null,null,null,"Bertile",16]
[]
[]
[null,null,null,null,null,null,null,null,"2- Mettre en évidence les notes selon certains critères"]
[null,null,null,null,null,null,null,null,"(inférieur à 10, entre 10 et 15, supérieur à 15)"]
[null,null,null,null,null,null,null,null,"Elèves","Notes "]
["3- Choisissez le type de mise en forme souhaitée",null,null,null,null,null,null,null,"Yolande",14]
[null,null,null,null,null,null,null,null,"Sylvie",16]
[null,null,null,null,null,null,null,null,"Kaoutar",14]
[null,null,null,null,null,null,null,null,"Bertile",8]
[]
[null,null,null,null,null,null,null,null,"3- Mettre en évidence la meilleure performance d'un élève"]
[null,null,null,null,null,null,null,null,"Elèves","Temps 1er 50m","2è 50m","3ème 50m"]
[null,null,null,null,null,null,null,null,"Mickael ",5.9,6.3,6.1]
[null,null,null,null,null,null,null,null,"Franck",6.7,30,6.6]
[]
[]
[]
[]
[]
[]
[]
[]
[]
[]
[]
["4- Choisissez le type de règle "]
[]
[]
[]
[]
[]
[]
[]
[]
[]
[]
["5-Indiquer le Texte et la mise en forme associée : ici Lorsque la cellule définie contiendra le mot \"BRAVO\" elle changera de mise en forme (en Vert)"]
[]
[]
[]
[null,null,null,null,null,null,null,null,null,"BRAVO",null,null,"BRAVO"]
[null,null,null,null,null,null,null,null,null,null,null,null,"PAS MAL"]
[null,null,null,null,null,null,null,null,null,null,null,null,"CONTINUE"]
[]
[]
[]
[]
[]
[]
[]
[]
[]
[]
["6- Vous pouvez associer une formule à la mise en forme aussi "]
[]
["7- Indiquez la formule "]
[]
[null,null,null,null,null,null,null,null,null,"Changez de mot pour voir le changement "]
[null,null,null,null,null,null,null,null,null,"En progrès",null,null,"Peux mieux faire"]
[null,null,null,null,null,null,null,null,null,null,null,null,"En progrès"]
[]
[]
[]
[]
[]
[]
[]
["BREF : jouer avec les règles selon vos besoins, envies"]

{"sheet":"CRÉER APPLI POUR TAB","index":7,"n_rows":18,"n_cols":16,"rows_kept":18,"cut":false,"hidden":false,"merged":[[17,0,17,6],[1,1,1,5],[1,8,1,12],[1,15,1,19],[4,8,4,9],[4,11,4,12],[4,0,5,6]]}
[]
["CRÉER SON APPLI","COMPRENDRE",null,null,null,null,null,null,"EXEMPLES CONCRETS EN EPS",null,null,null,null,null,null,"S'ENTRAINER"]
[]
[]
["TOUT EST POSSIBLE : le seul frein c'est le temps de création mais après vous gagnerez du temps en cours et pourrez imaginer de nouvelles mises en œuvre pédagogiques"]
[]
["TOUJOURS CRÉER UN ONGLET \"DEBUT\" OU VOUS ALLEZ CENTRALISER TOUTES LES DONNEES",null,null,null,null,null,null,null,"Elèves","MUSCLES","Niveau","Note"]
[" Dans cet onglet vous indiquez sous forme de tableau toutes les données à sélectionner, écrire, ...",null,null,null,null,null,null,null,"Philippe","PECTORAUX","Niveau 1",0]
[null,null,null,null,null,null,null,null,"François P.","BICEPS","Niveau 2",1]
[null,null,null,null,null,null,null,null,"François G.","FESSIERS","Niveau 3",2]
["2le choix des polices, des couleurs de cellule, des mises en forme,… influence le design de l'appli",null,null,null,null,null,null,null,"Gérald",null,null,3]
[null,null,null,null,null,null,null,null,"Ludo",null,null,4]
[null,null,null,null,null,null,null,null,"Micka",null,null,5]
[]
[]
[]
[]
["1- Choisir des formats de cellules suffisament gransd pour cliquer avec l'index sur une tablette\n2- Limiter la saisie de texte : préférez les données de validation\n3- Mettre de la couleur pour un joli rendu\n4- Ritualiser la mise en forme de vos applis pour faciliter le transfert entre les activités\n5- Masquer les en-têtes pour un plus joli rendu\n6- Donner des noms d'onglet logiques et repérables par les élèves dans le cas où les liens ne fonctionnent pas\n7- Figer les cellules "]

{"sheet":"MACROS","index":8,"n_rows":173,"n_cols":16,"rows_kept":173,"cut":false,"hidden":false,"merged":[[1,1,1,5],[1,8,1,12],[1,15,1,19],[4,8,4,9],[4,11,4,12],[41,1,41,5],[148,0,148,5],[57,1,57,5],[58,1,58,5],[59,1,59,5],[48,1,48,5],[49,1,49,5],[51,1,51,5],[42,1,42,5],[43,1,43,5],[44,1,44,5],[45,1,45,5],[46,1,46,5],[47,1,47,5],[76,1,76,5],[77,1,77,5],[78,1,78,5],[79,1,79,5],[81,1,81,5],[52,0,52,6],[53,0,53,5],[69,8,69,12],[74,1,74,5],[66,1,66,5],[67,1,67,5],[68,1,68,5],[69,1,69,5],[70,1,70,5],[71,1,71,5],[60,1,60,5],[61,1,61,5],[62,1,62,5],[63,1,63,5],[64,1,64,5],[65,1,65,5],[54,1,54,5],[55,1,55,5],[56,1,56,5],[88,1,88,5],[89,1,89,5],[90,1,90,5],[91,1,91,5],[92,1,92,5],[93,1,93,5],[82,1,82,5],[83,1,83,5],[84,1,84,5],[85,1,85,5],[87,1,87,5],[100,1,100,5],[101,1,101,5],[102,1,102,5],[103,1,103,5],[104,1,104,5],[105,1,105,5],[94,1,94,5],[95,1,95,5],[96,1,96,5],[97,1,97,5],[98,1,98,5],[99,1,99,5],[112,1,112,5],[113,1,113,5],[114,1,114,5],[115,1,115,5],[116,1,116,5],[117,1,117,5],[106,1,106,5],[107,1,107,5],[108,1,108,5],[109,1,109,5],[110,1,110,5],[111,1,111,5],[124,1,124,5],[125,1,125,5],[126,1,126,5],[127,1,127,5],[128,1,128,5],[129,1,129,5],[118,1,118,5],[119,1,119,5],[120,1,120,5],[121,1,121,5],[122,1,122,5],[123,1,123,5],[136,1,136,5],[137,1,137,5],[138,1,138,5],[139,1,139,5],[140,1,140,5],[141,1,141,5],[130,1,130,5],[131,1,131,5],[132,1,132,5],[133,1,133,5],[134,1,134,5],[135,1,135,5],[149,1,149,5],[150,1,150,5],[151,1,151,5],[152,1,152,5],[153,1,153,5],[142,1,142,5],[143,1,143,5],[144,1,144,5],[145,1,145,5],[146,1,146,5],[147,1,147,5],[154,0,154,5],[165,0,165,5],[173,1,173,5],[174,1,174,5],[175,1,175,5],[176,1,176,5],[177,1,177,5],[166,1,166,5],[167,1,167,5],[169,1,169,5],[170,1,170,5],[171,1,171,5],[160,1,160,5],[161,1,161,5],[162,1,162,5],[163,1,163,5],[164,1,164,5],[155,1,155,5],[156,1,156,5],[157,1,157,5],[158,1,158,5],[159,1,159,5],[168,1,168,6],[172,0,172,5],[184,1,184,5],[185,1,185,5],[186,1,186,5],[187,1,187,5],[188,1,188,5],[189,1,189,5],[178,1,178,5],[179,1,179,5],[180,1,180,5],[181,1,181,5],[182,1,182,5],[183,1,183,5],[196,1,196,5],[197,1,197,5],[198,1,198,5],[199,1,199,5],[200,1,200,5],[201,1,201,5],[190,1,190,5],[191,1,191,5],[192,1,192,5],[193,1,193,5],[194,1,194,5],[195,1,195,5],[208,1,208,5],[209,1,209,5],[210,1,210,5],[211,1,211,5],[212,1,212,5],[213,1,213,5],[202,1,202,5],[203,1,203,5],[204,1,204,5],[205,1,205,5],[206,1,206,5],[207,1,207,5],[220,1,220,5],[221,1,221,5],[222,1,222,5],[223,1,223,5],[224,1,224,5],[225,1,225,5],[214,1,214,5],[215,1,215,5],[216,1,216,5],[217,1,217,5],[218,1,218,5],[219,1,219,5],[232,1,232,5],[233,1,233,5],[234,1,234,5],[235,1,235,5],[236,1,236,5],[237,1,237,5],[226,1,226,5],[227,1,227,5],[228,1,228,5],[229,1,229,5],[230,1,230,5],[231,1,231,5],[244,1,244,5],[245,1,245,5],[246,1,246,5],[247,1,247,5],[248,1,248,5],[249,1,249,5],[238,1,238,5],[239,1,239,5],[240,1,240,5],[241,1,241,5],[242,1,242,5],[243,1,243,5],[256,1,256,5],[257,1,257,5],[258,1,258,5],[259,1,259,5],[260,1,260,5],[261,1,261,5],[250,1,250,5],[251,1,251,5],[252,1,252,5],[253,1,253,5],[254,1,254,5],[255,1,255,5],[268,1,268,5],[269,1,269,5],[270,1,270,5],[271,1,271,5],[272,1,272,5],[273,1,273,5],[262,1,262,5],[263,1,263,5],[264,1,264,5],[265,1,265,5],[266,1,266,5],[267,1,267,5],[280,1,280,5],[281,1,281,5],[282,1,282,5],[283,1,283,5],[284,1,284,5],[285,1,285,5],[274,1,274,5],[275,1,275,5],[276,1,276,5],[277,1,277,5],[278,1,278,5],[279,1,279,5],[292,1,292,5],[293,1,293,5],[294,1,294,5],[295,1,295,5],[296,1,296,5],[297,1,297,5],[286,1,286,5],[287,1,287,5],[288,1,288,5],[289,1,289,5],[290,1,290,5],[291,1,291,5],[304,1,304,5],[305,1,305,5],[306,1,306,5],[307,1,307,5],[308,1,308,5],[309,1,309,5],[298,1,298,5],[299,1,299,5],[300,1,300,5],[301,1,301,5],[302,1,302,5],[303,1,303,5],[316,1,316,5],[317,1,317,5],[318,1,318,5],[319,1,319,5],[320,1,320,5],[321,1,321,5],[310,1,310,5],[311,1,311,5],[312,1,312,5],[313,1,313,5],[314,1,314,5],[315,1,315,5],[328,1,328,5],[329,1,329,5],[330,1,330,5],[331,1,331,5],[332,1,332,5],[333,1,333,5],[322,1,322,5],[323,1,323,5],[324,1,324,5],[325,1,325,5],[326,1,326,5],[327,1,327,5],[343,1,343,5],[344,1,344,5],[345,1,345,5],[334,1,334,5],[335,1,335,5],[336,1,336,5],[337,1,337,5],[338,1,338,5],[339,1,339,5],[364,1,364,5],[365,1,365,5],[123,8,125,8],[358,1,358,5],[359,1,359,5],[360,1,360,5],[361,1,361,5],[362,1,362,5],[363,1,363,5],[352,1,352,5],[353,1,353,5],[354,1,354,5],[355,1,355,5],[356,1,356,5],[357,1,357,5],[346,1,346,5],[347,1,347,5],[348,1,348,5],[349,1,349,5],[350,1,350,5],[351,1,351,5],[340,1,340,5],[341,1,341,5],[342,1,342,5]]}
[]
["MACROS","COMPRENDRE",null,null,null,null,null,null,"EXEMPLES CONCRETS EN EPS",null,null,null,null,null,null,"S'ENTRAINER"]
[]
[]
["Pour créer une MACRO :"]
[]
["1- Créer une forme, ajouter un bouton ou insérer une image",null,null,null,null,null,null,"Avec des macros on peut tout faire ! Enfin presque…"]
[]
[]
[]
[]
[]
["2- Clic droit sur la forme : Affecter une macro …"]
[]
[]
[]
[]
[]
[]
[]
[]
[]
[]
[]
["3- Donnez un nom à la macro et cliquez sur Nouvelle ou choisissez une macro de la liste"]
[]
[]
[]
[]
[]
[]
[]
[]
[]
[]
["4- Entrez le code en commençant toujours par  :           Sub ma1èremacro()"]
["et en finissant par                                          :                      End Sub"]
[]
[]
["DES MACROS UTILES"]
[]
[null,"Sub activeruneautrefeuille()\nSheets(\"FORMULES\").Activate\nEnd sub"]
[]
[null,"Sub sélectionnerunecelluleK44()\nRange(\"K44\").Select\nEnd sub",null,null,null,null,null,null,null,null,"C'est moi"]
[]
[null,"Sub sélectionnerplusieurscellulesnoncontiguesK44L46()\nRange(\"K44, K46\").Select\nEnd sub",null,null,null,null,null,null,null,null,null,"Et moi"]
[]
[null,"Sub sélectionnerplusieurscellulescontiguesK44K48()\nRange(\"K44:K48\").Select\nEnd sub",null,null,null,null,null,null,null,null,"Enfin c'est nous"]
[]
[null,"Sub sélectionnerlaplagedecellulesnomméenote()\nRange(\"Note\").select\nEnd sub",null,null,null,null,null,null,null,"ELEVES","NOTES"]
["Préalable : avoir renommé la plage (voir fonctions essentielles)",null,null,null,null,null,null,null,null,"Brice",17]
[null,null,null,null,null,null,null,null,null,"Sabrina",18.5]
["Sub sélectionnerlacellule3ligneendessous1colonneadroitedecellequiestactivée()\nActiveCell.Offset(3,1).Select\nEnd sub"]
["Précisions : ActiveCell effectue les actions souhaitées sur la cellule activée (en vert) \nactiver une cellule de votre choix. Le 1er chiffre correspond aux lignes  et le second aux colonnes. On peut entrer des chiffres négatifs pour aller dans l'autre sens (vers le haut ou à gauche)"]
[null,"Sub K55égal1()\nRange(\"K55\").value = 1\n'ou Range(\"K55\") = 1\nEnd sub"]
[]
[null,"Sub K55égal1()\nRange(\"K55\").value = \"OLA\"\nEnd sub"]
[]
[null,"Sub effacercontenuK55()\nSheets(\"MACROS\").Range(\"K55\").ClearContents\nEnd sub"]
[]
[null,"Sub changerlatailledutextedeK61()\nRange(\"K61\").Font.Size = 26\nEnd sub",null,null,null,null,null,null,null,null,"TEXTE"]
[]
[null,"Sub changerlapolicedutextedeK61()\nRange(\"K61\").Font.Name = Times New Roman\nEnd sub"]
[]
[null,"Sub ColorierlefonddelacelulleK65()\nRange(\"K66\").Interior.ColorIndex = 38\nEnd sub"]
[]
[null,"Sub changerletypedeborduredeK65()\nRange(\"K65\").Borders.value = 1\nEnd sub"]
[]
[null,"Sub modifierlahauteurdelaligne70()\nRows(\"70\").Rowheight = 0\nEnd sub"]
[null,null,null,null,null,null,null,null,"ATTENTION : Cette ligne peut disparaître"]
[null,"Sub modifierlalargeurdescolonnes()\nColumns(\"N:W\").ColumnWidth = 0\nEnd sub"]
[]
["Pour aller plus vite dans la rédaction si vous avez plein de modifications à faire"]
[]
[null,"Sub UtiliserWITHpourréaliserplusieursactions()\nWith Range(\"K76\")\n.Font.Size = 18\n.Font.name= \"Arial\"\n.Interior.ColorIndex = 38\n.Borders.Value = 1\nEnd With\nEnd sub\n",null,null,null,null,null,null,null,null,"COOL"]
[]
[null,"Sub incrémenterunecelluleK77de1en1()\nRange(\"K77\") = Range(\"K77\") +1\nEnd sub",null,null,null,null,null,null,null,null,26]
[]
[null,"La même chose avec un bouton "]
[]
["1- onglet Développeur : choisir le bouton à dessiner"]
[]
[]
[]
[]
[]
["2-Clic droit : format de contrôle",null,null,"3- Changer le pas et la cellule liée"]
[]
[]
[]
[]
[]
[]
[]
[]
[]
[]
[]
[]
[null,"Sub insérerunmessagedansuneMsgBox()\nDim monmessage As String\nmonmessage = \"OLA! votre message est bien inséré\"\nMsgBox monmessage\nEnd Sub"]
[]
[]
[]
[]
[]
[]
[]
[]
[]
[]
[]
[]
[]
[]
[null,"Dim mon message As String identique à \nDim mon message$"]
[]
[]
[null,"Sub copieruneséance()\n'position de la cellule où se trouve le numéro de la SA à copier\nDim I124 As String\n\n'déclaration des variables pour simplifier l'écriture du code\nDim S1 As Range, S2 As Range, SAchoisie As Range\n\n'où se trouve I124 Ligne 124 et colonne I est la Colonne 9\nI124 = Cells(124, 9)\n\nSet S1 = Sheets(\"MACROS\").Range(\"I120:J122\")\nSet S2 = Sheets(\"MACROS\").Range(\"L120:M122\")\nSet SAchoisie = Sheets(\"MACROS\").Range(\"J124:K126\")\n\n'utilisation de Select Case pour qu'en fonction de la valeur de la cellule choisie on copie la SA adaptée\nSelect Case I124\nCase \"SA1\"\nSAchoisie.Value = S1.Value\n\nCase \"SA2\"\nSAchoisie.Value = S2.Value\n\nEnd Select\nEnd Sub"]
[null,null,null,null,null,null,null,null,"SA1",null,null,"SA2"]
[null,null,null,null,null,null,null,null,"Obj","Copier SA",null,"Obj","SA à copier"]
[null,null,null,null,null,null,null,null,"But","Gagner du tps",null,"But","Temps gagné"]
[null,null,null,null,null,null,null,null,"Consignes ","Clic sur bouton 1",null,"Consignes ","Bouton bien cliqué"]
[]
[null,null,null,null,null,null,null,null,"SA1","Obj","Copier SA"]
[null,null,null,null,null,null,null,null,null,"But","Gagner du tps"]
[null,null,null,null,null,null,null,null,null,"Consignes ","Clic sur bouton 1"]
[null,null,null,null,null,null,null,null,"Choix de la SA à copier"]
[]
[]
[null,"Sub copieruneimage()\nSheets(\"MACROS\").Shapes(\"Image 2\").Copy\nSheets(\"MACROS\").Range(\"M130\").PasteSpecial xlPAsteAll\nEnd sub"]
[]
[null,"Sub renommeruneimage()\nDim sh As Shape\nFor each sh in ActiveSheet.Shapes\nIf sh.topLeftCell.Address = \"$M$130\" Then sh.Name = \"volantbad\"\nNext sh\nEnd sub"]
[]
[null,"Sub supprimeruneimage()\nFor each sh in Sheets(\"MACROS\").Shapes\nif Not Intersect(sh.TopLEftCell, Sheets(\"MACROS\").Range(\"$M$130\") Is Nothing Then \nsh.Delete\nEnd if\nNext sh\nEnd sub"]
[null,"Sub copierimagedanscelluleselectionnee()\n'sélectionner l'image nommée Image 2\n ActiveSheet.Shapes.Range(Array(\"Image 2\")).Select\n    selection.Copy\n'la copier dans la cellule sélectionnée\n    ActiveCell.Select\n    ActiveSheet.Paste\nEnd Sub"]
[null,null,null,null,null,null,null,null,null,null,"Mettre une note"]
[null,"Sub commentairesnotes()\nIf Range(\"K137\") >= 15 Then\nRange(\"K138\") = \"Acquis\"\nElseIf Range(\"K137\") >= 10 Then\nRange(\"K138\") = \"En cours\"\nElseIf Range(\"K137\") < 10 Then\nRange(\"K138\") = \"Non acquis\"\nEnd If\nEnd Sub",null,null,null,null,null,null,null,"Floriane ->",8]
[null,null,null,null,null,null,null,null,null,null,"Non acquis"]
[]
[null,"Sub trierunecolonne()\nActiveWorkbook.Worksheets(\"MACROS\").Sort.SortFields.Clear\nActiveWorkbook.Worksheets(\"MACROS\").Sort.SortFields.Add Key:=_\nRange(\"K141\"), SOrtOn:=xlSortOnValues, Order:=xlAscendinf, DataOption:=_\nxlSortNormal\nWith ActiveWorbook.Worksheets(\"MACROS\").Sort\n.SetRange Range(\"K141:K144\")\n.header = xlGuess\n.MatchCase = False\n.Orientation = xlTopTOBottom\n.sortMEthod = xlPinYin\n.Apply\nEnd with\nEnd sub"]
[null,null,null,null,null,null,null,null,null,null,"TIRS"]
[null,null,null,null,null,null,null,null,null,null,8]
[null,null,null,null,null,null,null,null,null,null,10]
[null,null,null,null,null,null,null,null,null,null,1]
[]
[]
[null,null,null,null,null,null,null,null,null,null,"Chrono chiffre","Chrono Temps"]
[null,"Sub StartChrono()\nApplication.OnTime Now + TimeValue(\"00:00:01\"), \"Incrementer\"\nEnd sub\n\nSub incrementer()\nRange(\"K148\") = Range (\"K148\") +1\nStartChrono\nEnd sub",null,null,null,null,null,null,null,null,0,{"$f":"K148/86400","v":"00:00:00"}]
["Précisions : le chrono fait défiler les chiffres : dans une autre cellule il faut convertir le format de cellule en format horaire (13:30:55)  et diviser K148 par 86400 (=K148/86400 : formule écrite en L148)"]
[null,"Sub StopChrono()\nApplication.OnTIme Now + TimeValue(\"00:00:01\"), \"incrementer\", Schedule:=False\nEnd sub"]
[]
[null,"Sub RAZchrono()\nRange(\"K148\") = 0\nEnd sub"]
[null,null,null,null,null,null,null,null,null,null,"Heure"]
[null,"Dim depart\nSub afficheheure()\ndepart = 0\nRange(\"K154\").Value = Time() 'affiche l'heure de départ (horloge interne)\nEnd Sub",null,null,null,null,null,null,null,null,"15:21:54"]
["Précisions : pensez à changer le format de l'heure"]
[]
[null,"ub calcultempstour()\nFor Ligne = 158 To 162 ' 5 tours\n'158 to 162 sont les 5 lignes où vont appraitre les temps\n    If Cells(Ligne, 11) = \"\" Then\n        Cells(Ligne, 11).Offset(depart, 0) = Time() - Range(\"K154\").Value\n'11 est le numéro de la colonne où les tps vont appraitre\n        Exit Sub\n    End If\nNext Ligne\nEnd Sub",null,null,null,null,null,null,null,null,"Temps au tour"]
[]
[]
[]
[]
[]
[]
[null,null,null,null,null,null,null,null,null,null,null,null,"Ecrire un mot ici"]
[null,"Sub ecrireuntextedansuneformeapartirduneliste()\nActiveSheet.Shapes(\"Rectangle à coins arrondis 2053\").TextFrame.Characters.Text = Range(\"M165\").value\nEnd sub",null,null,null,null,null,null,null,null,null,null,"JO"]
["Précisions : soit vous renommez la forme, soit vous recopiez son nom (qui se trouve en haut à gauche sous ACCUEIL)"]
[]
[]
[null,"Sub copieruneselectiondanslapremierecolonnevideduneautrefeuille()\nRange(\"A4:A14\").Select\n    Application.CutCopyMode = False\n    Selection.Copy\n\nSheets(\"sauvegarde\").Select\nCells(1, Columns.Count).End(xlToLeft).Offset(, 1).Select\n\n    ActiveSheet.Paste\n\nSelection.PasteSpecial Paste:=xlValues, Operation:=xlNone, SkipBlanks:= _\n        False, Transpose:=False\n\nEnd Sub"]
[]
[null,"Sub copierlesresultatspremierelignevidecolonneA()\nRange(\"K4:M14\").Select\n    Application.CutCopyMode = False\n    selection.Copy\n    Sheets(\"iPTB2\").Select\n    Range(\"A65536\").End(xlUp).Offset(2, 0).Select\n    selection.PasteSpecial Paste:=xlValues, Operation:=xlNone, SkipBlanks:= _\n        False, Transpose:=False\n    ActiveSheet.Paste\n\nselection.PasteSpecial Paste:=xlValues, Operation:=xlNone, SkipBlanks:= _\n        False, Transpose:=False\nEnd Sub"]
[]
["Voici quelques lignes de commandes utiles que vous pouvez inscrire dans des macros (attachÈes ‡ des boutons ou ‡ l'ouverture d'un fichier excel)\n    \n'cacher la barre de formule\nApplication.DisplayFormulaBar = False\n\n'cacher l'aspect grillagÈ de la feuille\nActiveWindow.DisplayGridlines = False\n\n'cacher la barre d'outil du haut\nActiveWindow.DisplayHeadings = False\n\n'plein Ècran\nApplication.DisplayFullScreen = True\n\n'sÈlection d'une feuille au dÈmarrage\nSheets(\"ACCUEIL\").Select\n\n'dÈterminer le zoom par dÈfaut\nActiveWindow.Zoom = 90\n\n'cacher les onglets\nActiveWindow.DisplayWorkbookTabs = False"]

{"sheet":"LIEN HYPERTEXTE","index":9,"n_rows":19,"n_cols":16,"rows_kept":19,"cut":false,"hidden":false,"merged":[[1,1,1,5],[1,8,1,12],[1,15,1,19],[4,8,4,9],[4,11,4,12]]}
[]
["LIENS HYPERTEXTE","COMPRENDRE",null,null,null,null,null,null,"EXEMPLES CONCRETS EN EPS",null,null,null,null,null,null,"S'ENTRAINER"]
[]
[null,null,null,null,null,null,null,null,null,null,"Lien vers une autre feuille"]
["La base pour créer des liens esthétiques et efficaces au sein d'un document",null,null,null,null,null,null,null,"Lien vers une autre cellule "]
["1- Insérer un texte ou une forme",null,null,null,null,null,null,null,"Lien K13"]
[]
[]
[]
[]
["2-Cliquer Droit puis Lien Hypertexte Puis sur Document pour générer un lien vers une autre cellule (cliquez sur Page web ou messagerie pour d'autres possibilités)"]
[]
[null,null,null,null,"3-Tapez la référence de la cellule dans la feuille correspondante"]
[]
[]
[]
[]
[null,null,null,null,null,null,null,null,null,"Lien vers mon site ;)"]
[null,null,null,null,null,null,null,null,null,"ac.mick.eps"]

{"sheet":"COMMENTAIRES","index":10,"n_rows":8,"n_cols":16,"rows_kept":8,"cut":false,"hidden":false,"merged":[[1,1,1,5],[1,8,1,12],[1,15,1,19],[4,8,4,9],[4,11,4,12]]}
[]
["COMMENTAIRES","COMPRENDRE",null,null,null,null,null,null,"EXEMPLES CONCRETS EN EPS",null,null,null,null,null,null,"S'ENTRAINER"]
[]
[]
[]
["Clic droit sur la cellule où on souhaite inscrire un commentaire"]
[null,null,null,null,null,null,null,null,null,null,"il est ici le commentaire"]
["Puis Insérer un commentaire"]

{"sheet":"CHOIX PHOTO INTERNE","index":11,"n_rows":69,"n_cols":16,"rows_kept":69,"cut":false,"hidden":false,"merged":[[65,0,69,6],[63,9,65,11],[1,1,1,5],[1,8,1,12],[1,15,1,19],[4,8,4,9],[4,11,4,12]]}
[]
["CHOIX PHOTO","COMPRENDRE",null,null,null,null,null,null,"EXEMPLES CONCRETS EN EPS",null,null,null,null,null,null,"S'ENTRAINER"]
[]
[]
[]
[]
["1- Créer un tableau avec une liste et des images associées",null,null,null,null,null,null,null,"Balles "]
["2-en uniformisant les taille des images et en l'adaptant à la taille des cellules",null,null,null,null,null,null,null,"Diabolo"]
[null,null,null,null,null,null,null,null,"Anneaux"]
[]
["3-Créer une donnée de validation (voir chapitre) ou recopier le nom d'un des instruments de la liste",null,null,null,null,null,null,null,null,null,"Choisir un instrument"]
[null,null,null,null,null,null,null,null,null,null,"Diabolo"]
[]
[]
["4- copier une des images du tableau pour avoir la bonne dimension d'image"]
[]
[]
[]
[]
["5- Créer 2 Les noms de champ avec Insertion/Nom/Définir "]
[]
["1er nom correspond à la plage de cellules comportant tous les noms d'instruments"]
["Liste = 'CHOIX PHOTO INTERNE'!$I$7:$I$9"]
[]
[]
[]
[]
[]
[]
[]
[]
[null,null,null,null,null,null,null,null,null,null,"Choisir ici le nom de l'instrument poiur que la bonne image s'affiche dessous"]
[null,null,null,null,null,null,null,null,null,null,"Diabolo"]
[]
[]
["2ème nom correspond au nom que nous allons donner à l'image"]
["image1=DECALER('CHOIX PHOTO INTERNE'!$J$7;EQUIV('CHOIX PHOTO INTERNE'!$K$33;Liste;0)-1;0)"]
[]
["$J$7 : correspond à la 1ère cellule de la 2ème colonne du tableau : celle où se trouve donc la 1ère image de la liste"]
["$K$33 : correspond à la cellule où se trouve la liste et donc le choix de l'instrument à sélectionner",null,null,null,null,null,null,null,null,null,"Cette image s'appelle =image1"]
[]
["Cliquer sur l'image et dans la barre de formule écrire =image1 et taper Entrée"]
["PS: mettez une valeur au préalable dans la cellule K33"]
[]
[]
[]
[]
[]
[]
[]
[]
[]
[]
[]
[]
[]
[]
[]
[]
[]
[]
[]
[]
[null,null,null,null,null,null,null,null,null,"Exemple approximatif de ce qu'il faut faire pour que l'image soit affichée correctement sur iPAD"]
[]
["LORSQU'ON TRANSFERE DU PC A l'IPAD UN DECALAGE D'IMAGE SE PRODUIT : il faut agrandir de près du double et décaler d'une demi-cellule environ l'image pour qu'elle s'affiche correctement sur l'iPAD. Il faut un peu tatonner la 1ère fois pour trouver la bonne taille et le bon décalage puis mettre les autres à la suite"]
[null,null,null,null,null,null,null,null,null,"Balles "]
[null,null,null,null,null,null,null,null,null,"Diabolo"]
[null,null,null,null,null,null,null,null,null,"Anneaux"]

{"sheet":"REVISION-SECURITE","index":12,"n_rows":55,"n_cols":16,"rows_kept":55,"cut":false,"hidden":false,"merged":[[1,1,1,5],[1,8,1,12],[1,15,1,19],[4,8,4,9],[4,11,4,12]]}
[]
["REVISION","COMPRENDRE",null,null,null,null,null,null,"EXEMPLES CONCRETS EN EPS",null,null,null,null,null,null,"S'ENTRAINER"]
[]
["IMPORTANT DE PROTEGER UN DOCUMENT POUR EVITER DE MOFIFIER UNE CELLULE AVEC UNE FORMULE PAR EXEMPLE"]
["Avant de commencer ôter la protection de cette feuille"]
[]
[]
[]
[]
[]
[]
[]
[]
[]
[]
[]
["Cliquer sur les cellules que vous souhaitez protéger et faites un clic droit - Format de cellule"]
[]
[]
[]
[]
[]
[]
[]
[]
[]
[]
[]
[]
[]
[]
["Protection"]
[]
[]
[]
[]
[]
[]
[]
[]
[]
[]
[]
["Puis Vérouillé ou non les cellules choisies"]
[]
[null,null,null,null,null,null,null,null,null,"Ces celulles sont dévérouillées"]
[]
[null,null,null,null,null,null,null,null,null,null,"ici aussi"]
[]
[]
[null,null,null,null,null,null,null,null,null,null,null,"jusqu'ici"]
[]
[]
[]
["Protéger maintenant la feuille avec un mot de passe ou non (pour ma part je laisse seulement libre l'accès aux cellules dévérouillées mais tout est possible)"]

{"sheet":"INCREMENTER et $","index":13,"n_rows":48,"n_cols":16,"rows_kept":48,"cut":false,"hidden":false,"merged":[[1,1,1,5],[1,8,1,12],[1,15,1,19],[4,8,4,9],[4,11,4,12]]}
[]
["INCREMENTER et $","COMPRENDRE",null,null,null,null,null,null,"EXEMPLES CONCRETS EN EPS",null,null,null,null,null,null,"S'ENTRAINER"]
[]
[]
[]
[null,"La croix blanche permet de sélectionner une cellule"]
[]
[null,"La croix noire qui apparaît quand on se met dans l'angle en bas à droite"]
[null,"permet d'incrémenter, c'est à dire de recopier la forme d'une cellule"]
[null,"ou sa formule"]
[]
[]
[]
[]
[]
[]
[]
["Le $"]
["le $ permet de figer certaines données lorsqu'on souhaite incrémenter des cellules."]
["Si j'incrémente sans mettre de $ avant le nom d'une cellule alors EXCEL va modififier d'une cellule la formule"]
["Si je mets le $ la formule restera identique malgré l'incrémentation"]
[null,null,null,null,null,null,null,null,null,"Paul ",null,"John"]
["formule = somme(J23:J25)",null,null,null,null,null,null,null,"Paniers",1,null,3]
["formule = somme($J$23:$J$25)",null,null,null,null,null,null,null,"Tirs ",2,null,4]
[null,null,null,null,null,null,null,null,"Fautes",3,null,6]
[]
[]
[null,null,null,null,null,null,null,null,null,{"$f":"SUM(J23:J25)","v":6},null,{"$f":"SUM(L23:L25)","v":13}]
[null,null,null,null,null,null,null,null,null,"=somme(J23:J25)",null,"=somme(L23:L25)"]
[]
[null,null,null,null,null,null,null,null,null,{"$f":"SUM($J$23:$J$25)","v":6},null,{"$f":"SUM($J$23:$J$25)","v":6}]
[null,null,null,null,null,null,null,null,null,"=somme($J$23:$J$25)",null,"=somme($J$23:$J$25)"]
[]
[null,null,null,null,null,null,null,null,null,"Malgré l'incrémentation la formule n'a pas changée"]
[]
[]
[]
[null,null,null,null,null,null,null,null,null,1,null,1]
[null,null,null,null,null,null,null,null,null,1,null,2]
[null,null,null,null,null,null,null,null,null,1,null,3]
[null,null,null,null,null,null,null,null,null,"Effet",null,"Effet"]
[null,null,null,null,null,null,null,null,null,"Recopie incrémenté avec $",null,"sans $"]
[]
[null,null,null,null,null,null,null,null,null,1,"=$A$3",1,"=A3"]
[null,null,null,null,null,null,null,null,null,1,"=$A$3",5,"=A4"]
[null,null,null,null,null,null,null,null,null,1,"=$A$3",9,"=A5"]
[null,null,null,null,null,null,null,null,null,1,"=$A$3",13,"=A6"]
[null,null,null,null,null,null,null,null,null,1,"=$A$3",17,"=A7"]

{"sheet":"FIGER","index":14,"n_rows":18,"n_cols":16,"rows_kept":18,"cut":false,"hidden":false,"merged":[[7,0,7,5],[1,1,1,5],[1,8,1,12],[1,15,1,19],[4,8,4,9],[4,11,4,12],[5,0,5,5]]}
[]
["FIGER","COMPRENDRE",null,null,null,null,null,null,"EXEMPLES CONCRETS EN EPS",null,null,null,null,null,null,"S'ENTRAINER"]
[]
[]
[]
["CLiquez sur une ligne, une colonne ou une cellule puis sur l'onglet Fenêtre puis sur Figer les Volets:\nVous pourrez alors figer des cellules (comme dans ce document figé jusqu'à la ligne 4), ce qui vous permettre de faire défiler les autres cellules"]
[]
["Prenez des répères sur votre PC en envoyant un document sur votre tablette (pour ma part Je sais que sur mon macbook je peux figer mes documents au niveau de la ligne qui se situe à 5 cm environ du bord inférieur de mon écran et au niveau de la colonne qui se trouve à gauche de \"Partager le classeur\" dans l'onglet REVISION."]
[]
[]
[]
[]
[]
[]
[]
[]
[]
[null,null,null,null,"Je Selectionne cette cellule et je fige"]

{"sheet":"RACCOURCIS CLAVIER","index":15,"n_rows":27,"n_cols":16,"rows_kept":27,"cut":false,"hidden":false,"merged":[[1,1,1,5],[1,8,1,12],[1,15,1,19],[4,8,4,9],[4,11,4,12]]}
[]
["RACCOURCIS","COMPRENDRE",null,null,null,null,null,null,"EXEMPLES CONCRETS EN EPS",null,null,null,null,null,null,"S'ENTRAINER"]
[]
[]
["Utiles pour aller plus vite"]
[]
[]
["cmd + X","couper"]
["cmd + C","Copier"]
["cmd + V","Coller"]
["cmd + Z ","Annuler action"]
["cmd + A","Tout sélectionner"]
["cmd + N","Nouveau classeur"]
["cmd + P","Imprimer"]
["cmd + Y","Répéter la même action"]
["cmd + O","Ouvrir"]
["cmd + Q","Fermer"]
["cmd + S","Enregistrer"]
["cmd + F ","Rechercher"]
["cmd + H","Cache l'application active"]
["cmd + K ","Insérer Lien Hypertexte"]
["cmd + M","Réduire la fenêtre"]
["cmd + W","Fermer"]
[]
["cmd + maj + 4",null,"Permet de sélectionner une partie de l'écran pour enregistrer l'image correspondante"]
[]
["ctrl + Maj + Power",null,"Mise en veille"]

{"sheet":"CSV en TABLEAU","index":16,"n_rows":72,"n_cols":16,"rows_kept":72,"cut":false,"hidden":false,"merged":[[1,1,1,5],[1,8,1,12],[1,15,1,19],[4,11,4,12]]}
[]
["CSV en tableau","COMPRENDRE",null,null,null,null,null,null,"EXEMPLES CONCRETS EN EPS",null,null,null,null,null,null,"S'ENTRAINER"]
[]
[]
["Convertir un fichier .csv ou des données séparées par un ; espace , ou autre en tableau",null,null,null,null,null,null,null,"mickael;dacosta;lp les canuts"]
[]
["Données puis convertir"]
[]
[]
[]
[null,null,null,null,null,null,null,null,null,"EN"]
[]
[]
[]
[]
[]
[null,null,null,null,null,null,null,null,"mickael","dacosta","lp les canuts"]
[]
[]
["Choisir Déilimité"]
[]
[]
[]
[]
[]
[]
[]
[]
[]
[]
[]
[]
[]
[]
[]
[]
[]
[]
[]
["Choisir le type de séparateur : ici des \";\""]
[]
[]
[]
[]
[]
[]
[]
[]
[]
[]
[]
["Choisir le format des données"]
[]
[]
[]
[]
[]
[]
[]
[]
[]
[]
[]
[]
[]
[]
[]
[]
[]
[]
[]
["Mettre en forme le tableau ensuite classiquement"]

{"sheet":"MODELE","index":17,"n_rows":2,"n_cols":16,"rows_kept":2,"cut":false,"hidden":false,"merged":[[1,1,1,5],[1,8,1,12],[1,15,1,19],[4,8,4,9],[4,11,4,12]]}
[]
["BASE","COMPRENDRE",null,null,null,null,null,null,"EXEMPLES CONCRETS EN EPS",null,null,null,null,null,null,"S'ENTRAINER"]